[Event "St Kilda East and Caulfield Chess Club T3 2025 OPEN Thursdays"]
[Site "st kilda east, Australia"]
[Date "2025.08.14"]
[Round "3.1"]
[White "Hendrey, Thomas"]
[Black "Bambridge, Greg"]
[Result "1-0"]
[TimeControl "60 minutes per player per game plus 10 seconds from move 1"]
[WhiteElo "1919"]
[BlackElo "1378"]

1. d4 {[%clk 01:00:07]} {[%emt 00:00:02]} Nf6 {[%clk 00:59:22]} {[%emt
00:00:48]} 2. c4 {[%clk 01:00:15]} {[%emt 00:00:03]} e6 {[%clk 00:59:17]}
{[%emt 00:00:15]} 3. Nf3 {[%clk 01:00:20]} {[%emt 00:00:05]} b6 {[%clk
00:59:20]} {[%emt 00:00:07]} 4. a3 {[%clk 01:00:25]} {[%emt 00:00:06]} Bb7
{[%clk 00:59:25]} {[%emt 00:00:05]} 5. Bf4 {[%clk 01:00:28]} {[%emt 00:00:07]}
Be7 {[%clk 00:59:23]} {[%emt 00:00:12]} 6. Nc3 {[%clk 00:59:53]} {[%emt
00:00:45]} d6 {[%clk 00:58:56]} {[%emt 00:00:37]} 7. e3 {[%clk 00:59:05]}
{[%emt 00:00:58]} O-O {[%clk 00:58:56]} {[%emt 00:00:09]} 8. Bd3 {[%clk
00:56:58]} {[%emt 00:02:18]} Nbd7 {[%clk 00:58:10]} {[%emt 00:00:57]} 9. e4
{[%clk 00:55:09]} {[%emt 00:01:59]} c5 {[%clk 00:56:52]} {[%emt 00:01:28]} 10.
d5 {[%clk 00:42:38]} {[%emt 00:12:41]} e5 {[%clk 00:56:44]} {[%emt 00:00:18]}
11. Bd2 {[%clk 00:40:54]} {[%emt 00:01:54]} Re8 {[%clk 00:55:21]} {[%emt
00:01:33]} 12. Rg1 {[%clk 00:37:27]} {[%emt 00:03:37]} Nf8 {[%clk 00:50:42]}
{[%emt 00:04:48]} 13. g4 {[%emt 00:01:39]} N6d7 {[%clk 00:50:11]} {[%emt
00:00:10]} 14. Ne2 {[%clk 00:30:45]} {[%emt 00:05:54]} Ng6 {[%clk 00:49:29]}
{[%emt 00:00:52]} 15. Qc2 {[%clk 00:29:32]} {[%emt 00:01:23]} Rc8 {[%clk
00:46:33]} {[%emt 00:03:06]} 16. g5 {[%clk 00:27:45]} {[%emt 00:01:57]} b5
{[%clk 00:46:29]} {[%emt 00:00:14]} 17. cxb5 {[%clk 00:25:52]} {[%emt
00:02:03]} c4 {[%clk 00:45:39]} {[%emt 00:01:00]} 18. Bxc4 {[%clk 00:25:29]}
{[%emt 00:00:33]} Nc5 {[%clk 00:45:42]} {[%emt 00:00:07]} 19. b4 {[%clk
00:23:02]} {[%emt 00:02:37]} Nd7 {[%clk 00:45:41]} {[%emt 00:00:10]} 20. Qb3
{[%clk 00:22:39]} {[%emt 00:00:34]} Nb6 {[%clk 00:45:42]} {[%emt 00:00:09]} 21.
Bd3 {[%clk 00:21:04]} {[%emt 00:01:45]} Qd7 {[%clk 00:45:38]} {[%emt 00:00:15]}
22. a4 {[%clk 00:18:47]} {[%emt 00:02:28]} Bf8 {[%clk 00:45:36]} {[%emt
00:00:11]} 23. Nc3 {[%clk 00:14:32]} {[%emt 00:04:26]} Rxc3 {[%clk 00:43:17]}
{[%emt 00:02:29]} 24. Bxc3 {[%clk 00:13:42]} {[%emt 00:01:01]} Nxd5 {[%clk
00:43:20]} {[%emt 00:00:07]} 25. exd5 {[%clk 00:07:09]} {[%emt 00:06:42]} e4
{[%clk 00:43:24]} {[%emt 00:00:06]} 26. O-O-O {[%clk 00:06:41]} {[%emt
00:00:38]} exd3 {[%clk 00:43:03]} {[%emt 00:00:30]} 27. Rxd3 {[%clk 00:05:38]}
{[%emt 00:01:13]} Nf4 {[%clk 00:43:05]} {[%emt 00:00:08]} 28. Rgd1 {[%clk
00:02:22]} {[%emt 00:03:26]} Nxd3+ {[%clk 00:42:17]} {[%emt 00:00:58]} 29. Rxd3
{[%clk 00:02:31]} {[%emt 00:00:02]} Qf5 {[%clk 00:42:16]} {[%emt 00:00:11]} 30.
Qd1 {[%clk 00:02:01]} {[%emt 00:00:40]} Bxd5 {[%clk 00:39:28]} {[%emt
00:02:57]} 31. Rxd5 {[%clk 00:01:30]} {[%emt 00:00:41]} Qf4+ {[%clk 00:39:05]}
{[%emt 00:00:33]} 32. Kb2 {[%clk 00:01:03]} {[%emt 00:00:37]} Qe4 {[%clk
00:38:52]} {[%emt 00:00:23]} 33. Qd3 {[%clk 00:00:43]} {[%emt 00:00:30]} Qe7
{[%clk 00:38:53]} {[%emt 00:00:09]} 34. Rxd6 {[%emt 00:00:51]} Qc7 {[%clk
00:38:27]} 35. Rd7 {[%clk 00:00:33]} {[%emt 00:00:16]} Qf4 {[%clk 00:38:18]}
{[%emt 00:00:17]} 36. Rd4 {[%clk 00:00:17]} {[%emt 00:00:26]} Qc7 {[%clk
00:38:08]} {[%emt 00:00:20]} 37. Nd2 {[%clk 00:00:20]} {[%emt 00:00:07]} Qxh2
{[%clk 00:38:16]} {[%emt 00:00:02]} 38. Rd8 {[%clk 00:00:20]} {[%emt 00:00:10]}
Re6 {[%clk 00:37:46]} {[%emt 00:00:40]} 39. Bd4 {[%clk 00:00:23]} {[%emt
00:00:08]} Qc7 {[%clk 00:37:49]} {[%emt 00:00:06]} 40. Bc5 {[%clk 00:00:24]}
{[%emt 00:00:09]} Qe5+ {[%clk 00:37:47]} {[%emt 00:00:12]} 41. Kb3 {[%clk
00:00:26]} {[%emt 00:00:09]} Re8 {[%clk 00:37:54]} {[%emt 00:00:03]} 42. Qd7
{[%clk 00:00:23]} {[%emt 00:00:13]} Rxd8 {[%clk 00:37:45]} {[%emt 00:00:18]} 43.
Qxd8 {[%clk 00:00:32]} {[%emt 00:00:02]} Qe6+ {[%clk 00:37:49]} {[%emt
00:00:07]} 44. Nc4 {[%clk 00:00:20]} {[%emt 00:00:22]} Qh3+ {[%clk 00:37:56]}
{[%emt 00:00:03]} 45. Ka2 {[%clk 00:00:19]} {[%emt 00:00:11]} 1-0

[Event "St Kilda East and Caulfield Chess Club T3 2025 OPEN Thursdays"]
[Site "st kilda east, Australia"]
[Date "2025.08.14"]
[Round "3.2"]
[White "Kalisch, Tom"]
[Black "Milic, James"]
[Result "0-1"]
[TimeControl "60 minutes per player per game plus 10 seconds from move 1"]
[WhiteElo "1506"]
[BlackElo "1368"]

1. e4 {[%clk 01:00:04]} {[%emt 00:00:04]} c6 {[%clk 01:00:01]} {[%emt
00:00:10]} 2. d4 {[%clk 00:59:38]} {[%emt 00:00:36]} d5 {[%clk 01:00:04]}
{[%emt 00:00:06]} 3. e5 {[%clk 00:59:45]} {[%emt 00:00:04]} c5 {[%clk
01:00:09]} {[%emt 00:00:05]} 4. dxc5 {[%clk 00:59:42]} {[%emt 00:00:13]} e6
{[%clk 01:00:10]} {[%emt 00:00:09]} 5. Bd3 {[%clk 00:59:25]} {[%emt 00:00:26]}
Nc6 {[%clk 00:59:34]} {[%emt 00:00:47]} 6. Nf3 {[%clk 00:59:20]} {[%emt
00:00:15]} Bxc5 {[%clk 00:59:28]} {[%emt 00:00:15]} 7. a3 {[%clk 00:58:46]}
{[%emt 00:00:45]} f6 {[%clk 00:57:43]} {[%emt 00:01:56]} 8. Qe2 {[%clk
00:53:13]} {[%emt 00:05:42]} fxe5 {[%clk 00:52:53]} {[%emt 00:05:00]} 9. Nxe5
{[%clk 00:53:08]} {[%emt 00:00:14]} Nxe5 {[%clk 00:47:26]} {[%emt 00:05:38]} 10.
Qxe5 {[%clk 00:53:12]} {[%emt 00:00:06]} Nf6 {[%clk 00:47:20]} {[%emt
00:00:16]} 11. Bb5+ {[%clk 00:51:49]} {[%emt 00:01:34]} Kf7 {[%clk 00:46:24]}
{[%emt 00:01:06]} 12. O-O {[%clk 00:49:24]} {[%emt 00:02:35]} Qb6 {[%clk
00:45:43]} {[%emt 00:00:51]} 13. Bd3 {[%clk 00:48:48]} {[%emt 00:00:46]} Bxf2+
{[%clk 00:43:27]} {[%emt 00:02:26]} 14. Kh1 {[%clk 00:48:19]} {[%emt 00:00:39]}
Bd4 {[%clk 00:33:35]} {[%emt 00:10:03]} 15. Qh5+ {[%clk 00:47:55]} {[%emt
00:00:34]} Ke7 {[%clk 00:30:27]} {[%emt 00:03:18]} 16. Bg5 {[%clk 00:46:31]}
{[%emt 00:01:34]} Bxb2 {[%clk 00:25:39]} {[%emt 00:04:59]} 17. Ra2 {[%clk
00:46:25]} {[%emt 00:00:16]} e5 {[%clk 00:15:46]} {[%emt 00:10:03]} 18. Nd2
{[%clk 00:39:04]} {[%emt 00:07:30]} Bc3 {[%clk 00:13:55]} {[%emt 00:02:02]} 19.
Qh4 {[%clk 00:33:36]} {[%emt 00:05:37]} h6 {[%clk 00:07:31]} {[%emt 00:06:34]}
20. Rb1 {[%clk 00:28:50]} {[%emt 00:04:56]} Qd4 {[%clk 00:07:31]} {[%emt
00:00:10]} 21. Bxf6+ {[%clk 00:24:41]} {[%emt 00:04:19]} gxf6 {[%clk 00:07:34]}
{[%emt 00:00:07]} 22. Qxd4 {[%clk 00:24:40]} {[%emt 00:00:12]} Bxd4 {[%clk
00:07:27]} {[%emt 00:00:17]} 23. Nb3 {[%clk 00:23:54]} {[%emt 00:00:55]} Be3
{[%clk 00:06:54]} {[%emt 00:00:43]} 24. c3 {[%clk 00:23:35]} {[%emt 00:00:30]}
b6 {[%clk 00:06:10]} {[%emt 00:00:54]} 25. Re2 {[%clk 00:23:21]} {[%emt
00:00:23]} Bc5 {[%clk 00:05:05]} {[%emt 00:01:15]} 26. Bb5 {[%clk 00:18:36]}
{[%emt 00:04:56]} Bb7 {[%clk 00:03:35]} {[%emt 00:01:41]} 27. Bd3 {[%clk
00:14:13]} {[%emt 00:04:32]} Kd6 {[%clk 00:03:27]} {[%emt 00:00:18]} 28. a4
{[%clk 00:13:43]} {[%emt 00:00:41]} Bc6 {[%clk 00:01:54]} {[%emt 00:01:43]} 29.
a5 {[%clk 00:13:32]} {[%emt 00:00:21]} h5 {[%clk 00:01:41]} {[%emt 00:00:23]}
30. Rf1 {[%clk 00:13:15]} {[%emt 00:00:27]} Raf8 {[%clk 00:01:37]} {[%emt
00:00:14]} 31. Ba6 {[%clk 00:12:26]} {[%emt 00:00:59]} h4 {[%clk 00:01:13]}
{[%emt 00:00:33]} 32. h3 {[%clk 00:12:24]} {[%emt 00:00:11]} Rhg8 {[%clk
00:00:56]} {[%emt 00:00:27]} 33. Nxc5 {[%clk 00:11:42]} {[%emt 00:00:52]} bxc5
{[%clk 00:01:04]} {[%emt 00:00:02]} 34. Ref2 {[%clk 00:11:37]} {[%emt
00:00:15]} Ke7 {[%clk 00:00:54]} {[%emt 00:00:20]} 35. Re1 {[%clk 00:10:24]}
{[%emt 00:01:23]} Rg3 {[%clk 00:00:43]} {[%emt 00:00:22]} 36. Rc1 {[%clk
00:09:34]} {[%emt 00:01:01]} Rfg8 {[%clk 00:00:37]} {[%emt 00:00:16]} 37. Bf1
{[%clk 00:09:28]} {[%emt 00:00:16]} d4 {[%clk 00:00:39]} {[%emt 00:00:09]} 38.
Kh2 {[%clk 00:09:05]} {[%emt 00:00:33]} d3 {[%clk 00:00:19]} {[%emt 00:00:30]}
39. Re1 {[%clk 00:08:26]} {[%emt 00:00:49]} e4 {[%clk 00:00:23]} {[%emt
00:00:06]} 40. Rd2 {[%clk 00:07:44]} {[%emt 00:00:51]} c4 {[%emt 00:01:05]} 0-1

[Event "St Kilda East and Caulfield Chess Club T3 2025 OPEN Thursdays"]
[Site "st kilda east, Australia"]
[Date "2025.08.14"]
[Round "3.3"]
[White "Hird, Jasper"]
[Black "Bo, Jeremie"]
[Result "1-0"]
[TimeControl "60 minutes per player per game plus 10 seconds from move 1"]
[WhiteElo "1459"]
[BlackElo "473"]

1. e4 {[%clk 01:00:07]} {[%emt 00:00:02]} e5 {[%clk 01:00:07]} {[%emt
00:00:03]} 2. Nf3 {[%clk 01:00:14]} {[%emt 00:00:04]} Nc6 {[%clk 01:00:13]}
{[%emt 00:00:05]} 3. Bc4 {[%clk 01:00:20]} {[%emt 00:00:03]} Nf6 {[%clk
01:00:17]} {[%emt 00:00:05]} 4. d3 {[%clk 01:00:27]} {[%emt 00:00:03]} Bc5
{[%clk 01:00:20]} {[%emt 00:00:07]} 5. O-O {[%clk 01:00:32]} {[%emt 00:00:05]}
d6 {[%clk 01:00:24]} {[%emt 00:00:06]} 6. c3 {[%clk 01:00:39]} {[%emt
00:00:03]} O-O {[%clk 01:00:24]} {[%emt 00:00:10]} 7. h3 {[%clk 01:00:46]}
{[%emt 00:00:03]} Be6 {[%clk 01:00:26]} {[%emt 00:00:08]} 8. Nbd2 {[%clk
01:00:51]} {[%emt 00:00:05]} d5 {[%clk 01:00:15]} {[%emt 00:00:21]} 9. exd5
{[%clk 01:00:53]} {[%emt 00:00:07]} Nxd5 {[%clk 01:00:17]} {[%emt 00:00:08]} 10.
Re1 {[%clk 01:00:48]} {[%emt 00:00:15]} Bd6 {[%clk 00:59:39]} {[%emt 00:00:48]}
11. Ne4 {[%clk 01:00:35]} {[%emt 00:00:23]} Na5 {[%clk 00:58:10]} {[%emt
00:01:40]} 12. Bb5 {[%clk 00:58:36]} {[%emt 00:02:07]} c6 {[%clk 00:57:49]}
{[%emt 00:00:32]} 13. Ba4 {[%clk 00:58:40]} {[%emt 00:00:06]} f5 {[%clk
00:57:14]} {[%emt 00:00:45]} 14. Nxd6 {[%clk 00:56:45]} {[%emt 00:02:05]} Qxd6
{[%clk 00:57:14]} {[%emt 00:00:09]} 15. Nxe5 {[%clk 00:55:29]} {[%emt
00:01:27]} Rae8 {[%clk 00:56:43]} {[%emt 00:00:42]} 16. d4 {[%clk 00:49:04]}
{[%emt 00:06:34]} Nb6 {[%clk 00:54:45]} {[%emt 00:02:07]} 17. Bf4 {[%clk
00:46:56]} {[%emt 00:02:20]} Qe7 {[%clk 00:52:36]} {[%emt 00:02:18]} 18. b4
{[%clk 00:43:38]} {[%emt 00:03:29]} Nac4 {[%clk 00:51:25]} {[%emt 00:01:21]} 19.
Bb3 {[%clk 00:43:08]} {[%emt 00:00:41]} Nd6 {[%clk 00:50:30]} {[%emt 00:01:04]}
20. Ng6 {[%clk 00:42:07]} {[%emt 00:01:11]} Qf6 {[%clk 00:49:16]} {[%emt
00:01:24]} 21. Nxf8 {[%clk 00:41:49]} {[%emt 00:00:28]} Qxf8 {[%clk 00:49:15]}
{[%emt 00:00:11]} 22. Rxe6 {[%clk 00:41:34]} {[%emt 00:00:25]} Rxe6 {[%clk
00:49:15]} {[%emt 00:00:11]} 23. Bxe6+ {[%clk 00:41:36]} {[%emt 00:00:08]} Kh8
{[%clk 00:49:22]} {[%emt 00:00:03]} 24. Qh5 {[%clk 00:40:30]} {[%emt 00:01:16]}
1-0

[Event "St Kilda East and Caulfield Chess Club T3 2025 OPEN Thursdays"]
[Site "st kilda east, Australia"]
[Date "2025.08.14"]
[Round "3.4"]
[White "Ramachandran, Prashanth"]
[Black "Sandler, Leonid"]
[Result "0-1"]
[TimeControl "60 minutes per player per game plus 10 seconds from move 1"]
[WhiteElo "1318"]
[BlackElo "2279"]

1. e4 {[%clk 01:00:05]} {[%emt 00:00:04]} c5 {[%clk 00:59:52]} {[%emt
00:00:18]} 2. Nf3 {[%clk 01:00:10]} {[%emt 00:00:05]} e6 {[%clk 00:59:58]}
{[%emt 00:00:04]} 3. d4 {[%clk 01:00:15]} {[%emt 00:00:05]} cxd4 {[%clk
01:00:04]} {[%emt 00:00:04]} 4. Nxd4 {[%clk 01:00:20]} {[%emt 00:00:05]} Nc6
{[%clk 00:59:29]} {[%emt 00:00:46]} 5. Nc3 {[%clk 01:00:25]} {[%emt 00:00:06]}
d6 {[%clk 00:57:49]} {[%emt 00:01:50]} 6. Be3 {[%clk 01:00:23]} {[%emt
00:00:11]} Nf6 {[%clk 00:57:12]} {[%emt 00:00:46]} 7. f3 {[%clk 01:00:20]}
{[%emt 00:00:14]} Be7 {[%clk 00:54:52]} {[%emt 00:02:31]} 8. Qd2 {[%clk
01:00:23]} {[%emt 00:00:08]} O-O {[%clk 00:53:31]} {[%emt 00:01:31]} 9. O-O-O
{[%emt 00:00:08]} a6 {[%emt 00:02:02]} 10. Kb1 {[%clk 00:57:34]} {[%emt
00:00:49]} Qc7 {[%clk 00:48:57]} {[%emt 00:04:43]} 11. h4 {[%clk 00:57:11]}
{[%emt 00:00:33]} b5 {[%clk 00:47:54]} {[%emt 00:01:14]} 12. g4 {[%clk
00:56:32]} {[%emt 00:00:49]} Bb7 {[%clk 00:44:21]} {[%emt 00:03:43]} 13. h5
{[%clk 00:55:35]} {[%emt 00:01:07]} Nxd4 {[%clk 00:41:09]} {[%emt 00:03:22]} 14.
Bxd4 {[%clk 00:53:07]} {[%emt 00:02:37]} e5 {[%clk 00:38:53]} {[%emt 00:02:26]}
15. Be3 {[%clk 00:52:43]} {[%emt 00:00:34]} b4 {[%clk 00:37:42]} {[%emt
00:01:22]} 16. Nd5 {[%clk 00:45:33]} {[%emt 00:07:20]} Nxd5 {[%clk 00:33:21]}
{[%emt 00:04:30]} 17. exd5 {[%clk 00:45:32]} {[%emt 00:00:11]} Rfc8 {[%clk
00:33:14]} {[%emt 00:00:18]} 18. g5 {[%clk 00:42:23]} {[%emt 00:03:19]} a5
{[%clk 00:29:02]} {[%emt 00:04:22]} 19. g6 {[%clk 00:40:43]} {[%emt 00:01:50]}
Bf6 {[%clk 00:25:27]} {[%emt 00:03:44]} 20. gxf7+ {[%clk 00:39:48]} {[%emt
00:01:05]} Qxf7 {[%clk 00:22:08]} {[%emt 00:03:29]} 21. Bh3 {[%clk 00:39:10]}
{[%emt 00:00:48]} Kh8 {[%clk 00:21:55]} {[%emt 00:00:23]} 22. Bxc8 {[%clk
00:38:26]} {[%emt 00:00:53]} Rxc8 {[%clk 00:21:24]} {[%emt 00:00:43]} 23. h6
{[%clk 00:34:45]} {[%emt 00:03:51]} g6 {[%clk 00:21:25]} {[%emt 00:00:09]} 24.
f4 {[%clk 00:33:26]} {[%emt 00:01:28]} exf4 {[%clk 00:11:21]} {[%emt 00:10:14]}
25. Bxf4 {[%clk 00:33:00]} {[%emt 00:00:35]} a4 {[%clk 00:09:46]} {[%emt
00:01:47]} 26. Bxd6 {[%clk 00:26:18]} {[%emt 00:06:51]} b3 {[%clk 00:09:24]}
{[%emt 00:00:32]} 27. axb3 {[%clk 00:26:17]} {[%emt 00:00:11]} axb3 {[%clk
00:09:27]} {[%emt 00:00:07]} 28. c3 {[%clk 00:26:20]} {[%emt 00:00:06]} Ra8
{[%clk 00:06:57]} {[%emt 00:02:41]} 29. Ba3 {[%clk 00:22:35]} {[%emt 00:03:55]}
Bc8 {[%clk 00:06:41]} {[%emt 00:00:26]} 30. Qg2 {[%clk 00:19:38]} {[%emt
00:03:06]} Bf5+ {[%clk 00:06:31]} {[%emt 00:00:20]} 31. Kc1 {[%clk 00:19:37]}
{[%emt 00:00:11]} Rxa3 {[%clk 00:05:21]} {[%emt 00:01:20]} 32. bxa3 {[%clk
00:18:41]} {[%emt 00:01:06]} Bxc3 {[%clk 00:04:59]} {[%emt 00:00:32]} 33. Rdf1
{[%clk 00:14:15]} {[%emt 00:04:36]} b2+ {[%clk 00:04:47]} {[%emt 00:00:21]} 34.
Qxb2 {[%clk 00:14:01]} {[%emt 00:00:25]} Bxb2+ {[%clk 00:04:51]} {[%emt
00:00:05]} 35. Kxb2 {[%clk 00:14:06]} {[%emt 00:00:05]} Qxd5 {[%clk 00:04:44]}
{[%emt 00:00:18]} 36. Rc1 {[%clk 00:13:12]} {[%emt 00:01:04]} Qd2+ {[%clk
00:04:29]} {[%emt 00:00:24]} 37. Ka1 {[%clk 00:12:27]} {[%emt 00:00:56]} Be6
{[%clk 00:04:28]} {[%emt 00:00:11]} 0-1

[Event "St Kilda East and Caulfield Chess Club T3 2025 OPEN Thursdays"]
[Site "st kilda east, Australia"]
[Date "2025.08.14"]
[Round "3.5"]
[White "Gorelick, Zac"]
[Black "Hennessy, Maurice"]
[Result "0-1"]
[TimeControl "60 minutes per player per game plus 10 seconds from move 1"]
[WhiteElo "742"]
[BlackElo "1255"]

1. d4 {[%clk 01:00:06]} {[%emt 00:00:04]} Nf6 {[%clk 00:59:57]} {[%emt
00:00:14]} 2. Nf3 {[%clk 01:00:09]} {[%emt 00:00:07]} g6 {[%clk 00:59:50]}
{[%emt 00:00:16]} 3. e3 {[%clk 01:00:13]} {[%emt 00:00:06]} d5 {[%clk
00:59:35]} {[%emt 00:00:25]} 4. Bd3 {[%clk 01:00:15]} {[%emt 00:00:08]} Bg7
{[%clk 00:59:33]} {[%emt 00:00:12]} 5. O-O {[%clk 01:00:11]} {[%emt 00:00:13]}
O-O {[%clk 00:59:11]} {[%emt 00:00:33]} 6. b3 {[%clk 01:00:07]} {[%emt
00:00:15]} Nc6 {[%clk 00:58:51]} {[%emt 00:00:30]} 7. Bb2 {[%clk 01:00:05]}
{[%emt 00:00:12]} Re8 {[%clk 00:57:59]} {[%emt 00:01:02]} 8. Ne5 {[%clk
00:59:57]} {[%emt 00:00:17]} Nxe5 {[%clk 00:56:13]} {[%emt 00:01:56]} 9. dxe5
{[%clk 00:59:48]} {[%emt 00:00:19]} Ng4 {[%clk 00:55:41]} {[%emt 00:00:42]} 10.
h3 {[%clk 00:59:40]} {[%emt 00:00:18]} Nxe5 {[%clk 00:55:37]} {[%emt 00:00:15]}
11. f4 {[%clk 00:59:29]} {[%emt 00:00:17]} Nxd3 {[%clk 00:54:45]} {[%emt
00:01:06]} 12. Bxg7 {[%clk 00:59:35]} {[%emt 00:00:04]} Kxg7 {[%clk 00:52:14]}
{[%emt 00:02:42]} 13. Qxd3 {[%clk 00:59:33]} {[%emt 00:00:09]} Bf5 {[%clk
00:50:05]} {[%emt 00:02:21]} 14. Qd2 {[%clk 00:59:16]} {[%emt 00:00:27]} Kg8
{[%clk 00:48:05]} {[%emt 00:02:10]} 15. Nc3 {[%clk 00:58:21]} {[%emt 00:01:05]}
c6 {[%clk 00:47:43]} {[%emt 00:00:33]} 16. Rfe1 {[%clk 00:57:58]} {[%emt
00:00:32]} e5 {[%clk 00:46:47]} {[%emt 00:01:06]} 17. Ne2 {[%clk 00:57:03]}
{[%emt 00:01:04]} exf4 {[%clk 00:41:00]} {[%emt 00:05:51]} 18. exf4 {[%clk
00:56:53]} {[%emt 00:00:27]} Qb6+ {[%clk 00:39:44]} {[%emt 00:01:26]} 19. Kh1
{[%clk 00:56:36]} {[%emt 00:00:27]} Qf2 {[%clk 00:36:23]} {[%emt 00:03:32]} 20.
Rad1 {[%emt 00:01:11]} Be4 {[%emt 00:03:33]} 21. Nd4 {[%clk 00:51:02]} {[%emt
00:01:00]} Bxg2+ {[%clk 00:35:15]} {[%emt 00:01:18]} 22. Kh2 {[%clk 00:51:00]}
{[%emt 00:00:10]} Qxd2 {[%clk 00:35:06]} {[%emt 00:00:21]} 23. Rxd2 {[%clk
00:51:01]} {[%emt 00:00:09]} Rxe1 {[%clk 00:34:50]} {[%emt 00:00:26]} 24. Kxg2
{[%clk 00:51:06]} {[%emt 00:00:03]} Rae8 {[%clk 00:34:24]} {[%emt 00:00:37]}
0-1